fUST/lending_fUST_20241204
["ID","MTS","AMOUNT","RATE_DAILY","PERIOD"]
[344256616,1733322046512,-500.0,0.0002493,2]
[344256617,1733322046557,-500.0,0.0002493,2]
[344256618,1733322046601,-423.64777105,0.0002493,2]
[344256619,1733322046654,-500.0,0.0002493,2]
[344256620,1733322046704,-500.0,0.0002493,2]
[344256621,1733322046748,-500.0,0.0002493,2]
[344256622,1733322046799,-500.0,0.0002493,2]
[344256623,1733322046846,-500.0,0.0002493,2]
[344256624,1733322046897,-552.27753696,0.0002493,2]
[344256625,1733322046941,-466.20455251,0.0002493,2]
[344256626,1733322046986,-500.0,0.0002493,2]
[344256627,1733322047029,-500.0,0.0002493,2]
[344256628,1733322047072,-500.0,0.0002493,2]
[344256629,1733322047117,-500.0,0.0002493,2]
[344256630,1733322047163,-500.0,0.0002493,2]
[344256631,1733322047208,-500.0,0.0002493,2]
[344256632,1733322047256,-500.0,0.0002493,2]
[344256633,1733322047307,-500.0,0.0002493,2]
[344256634,1733322047357,-246.71721508,0.0002493,2]
[344256635,1733322047404,-500.0,0.0002493,2]
[344256636,1733322047455,-500.0,0.0002493,2]
[344256637,1733322047501,-467.15966321,0.0002493,2]
[344256638,1733322047547,-500.0,0.0002493,2]
[344256639,1733322047595,-500.0,0.0002493,2]
[344256640,1733322047642,-500.0,0.0002493,2]
[344256641,1733322047684,-500.0,0.0002493,2]
[344256642,1733322047731,-500.0,0.0002493,2]
[344256643,1733322047776,-500.0,0.0002493,2]
[344256644,1733322047819,-500.0,0.0002493,2]
[344256645,1733322047866,-500.0,0.0002493,2]
[344256646,1733322047913,-500.0,0.0002493,2]
[344256647,1733322047969,-500.0,0.0002493,2]
[344256648,1733322048023,-500.0,0.0002493,2]
[344256649,1733322048076,-500.0,0.0002493,2]
[344256650,1733322048133,-500.0,0.0002493,2]
[344256651,1733322048182,-500.0,0.0002493,2]
[344256652,1733322048235,-500.0,0.0002493,2]
[344256653,1733322048290,-500.0,0.0002493,2]
[344256654,1733322048344,-500.0,0.0002493,2]
[344256655,1733322048399,-500.0,0.0002493,2]
[344256656,1733322048448,-500.0,0.0002493,2]
[344256657,1733322048504,-500.0,0.0002493,2]
[344256658,1733322048559,-500.0,0.0002493,2]
[344256659,1733322048611,-500.0,0.0002493,2]
[344256660,1733322048663,-500.0,0.0002493,2]
[344256661,1733322048712,-500.0,0.0002493,2]
[344256662,1733322048769,-500.0,0.0002493,2]
[344256663,1733322048820,-500.0,0.0002493,2]
[344256664,1733322048870,-500.0,0.0002493,2]
[344256665,1733322048919,-500.0,0.0002493,2]
[344256666,1733322048966,-500.0,0.0002493,2]
[344256667,1733322049018,-500.0,0.0002493,2]
[344256668,1733322049068,-500.0,0.0002493,2]
[344256669,1733322049122,-500.0,0.0002493,2]
[344256670,1733322049181,-500.0,0.0002493,2]
[344256671,1733322049243,-500.0,0.0002493,2]
[344256672,1733322049302,-500.0,0.0002493,2]
[344256673,1733322049357,-500.0,0.0002493,2]
[344256674,1733322049413,-500.0,0.0002493,2]
[344256675,1733322049466,-500.0,0.0002493,2]
[344256676,1733322049515,-227.91066004,0.0002493,2]
[344256677,1733322049567,-500.0,0.0002493,2]
[344256678,1733322049620,-500.0,0.0002493,2]
[344256679,1733322049672,-500.0,0.0002493,2]
[344256680,1733322049727,-500.0,0.0002493,2]
[344256681,1733322049778,-500.0,0.0002493,2]
[344256682,1733322049822,-500.0,0.0002493,2]
[344256683,1733322049871,-500.0,0.0002493,2]
[344256684,1733322049920,-500.0,0.0002493,2]
[344256685,1733322049968,-500.0,0.0002493,2]
[344256686,1733322050015,-500.0,0.0002493,2]
[344256687,1733322050060,-500.0,0.0002493,2]
[344256688,1733322050116,-500.0,0.0002493,2]
[344256689,1733322050166,-500.0,0.0002493,2]
[344256690,1733322050212,-521.64763269,0.0002493,2]
[344256691,1733322050259,-500.0,0.0002493,2]
[344256692,1733322050305,-151.0,0.00024931,7]
[344256693,1733322050347,-151.0,0.00024931,7]
[344256694,1733322050397,-151.0,0.00024931,7]
[344256695,1733322050444,-151.0,0.00024931,7]
[344256696,1733322050491,-151.0,0.00024931,7]
[344256697,1733322050539,-500.0,0.00024931,7]
[344256698,1733322050584,-500.0,0.00024931,7]
[344256699,1733322050629,-500.0,0.00024931,7]
[344256700,1733322050676,-151.0,0.00024931,7]
[344256701,1733322050722,-981.94,0.00024931,7]
[344256702,1733322050926,-396.57579649,0.00024931,7]
[344256703,1733322050970,-500.0,0.00024931,7]
[344256704,1733322051015,-500.0,0.00024931,7]
[344256705,1733322051059,-705.85,0.00024931,7]
[344256706,1733322051104,-686.6,0.00024931,7]
[344256707,1733322051151,-500.0,0.00024931,7]
[344256708,1733322051193,-500.0,0.00024931,7]
[344256709,1733322051233,-500.0,0.00024931,7]
[344256710,1733322051277,-500.0,0.00024931,7]
[344256711,1733322051319,-500.0,0.00024931,7]
[344256712,1733322051361,-500.0,0.00024931,7]
[344256713,1733322051406,-500.0,0.00024931,7]
[344256714,1733322051449,-500.0,0.00024931,7]
[344256715,1733322051492,-157.7,0.00024931,7]
[344256716,1733322051534,-500.0,0.00024931,7]
[344256717,1733322051579,-500.0,0.00024931,7]
[344256718,1733322051623,-500.0,0.00024931,7]
[344256719,1733322051665,-500.0,0.00024931,7]
[344256720,1733322051712,-500.0,0.00024931,7]
[344256721,1733322051757,-151.0,0.00024931,7]
[344256722,1733322051799,-151.0,0.00024931,7]
[344256723,1733322051842,-151.0,0.00024931,7]
[344256724,1733322051886,-500.0,0.00024931,7]
[344256725,1733322051929,-500.0,0.00024931,7]
[344256726,1733322051974,-500.0,0.00024931,7]
[344256727,1733322052015,-500.0,0.00024931,7]
[344256728,1733322052056,-500.0,0.00024931,7]
[344256729,1733322052103,-5080.46,0.00024931,7]
[344256730,1733322052145,-500.0,0.00024931,7]
[344256731,1733322052188,-500.0,0.00024931,7]
[344256732,1733322052230,-500.0,0.00024931,7]
[344256733,1733322052272,-531.59,0.00024931,7]
[344256734,1733322052315,-500.0,0.00024931,7]
[344256735,1733322052357,-515.30846297,0.00024931,7]
[344256736,1733322052398,-219.13858816,0.00024931,7]
[344256737,1733322052444,-500.0,0.00024931,7]
[344256738,1733322052488,-500.0,0.00024931,7]
[344256739,1733322052528,-500.0,0.00024931,7]
[344256740,1733322052574,-500.0,0.00024931,7]
[344256741,1733322052617,-500.0,0.00024931,7]
[344256742,1733322052659,-500.0,0.00024931,7]
[344256743,1733322052702,-500.0,0.00024931,7]
[344256744,1733322052747,-571.27,0.00024931,7]
[344256745,1733322052788,-1736.0,0.00025,2]
[344256746,1733322052833,-4942.31347286,0.00025007,7]
[344256747,1733322052879,-151.0,0.00025105,7]
[344256748,1733322052924,-151.0,0.00025105,7]
[344256749,1733322052969,-151.0,0.00025105,7]
[344256750,1733322053010,-151.0,0.00025105,7]
[344256751,1733322053052,-151.0,0.00025105,7]
[344256752,1733322053097,-151.0,0.00025205,7]
[344256753,1733322053143,-151.0,0.00025205,7]
[344256754,1733322053187,-151.0,0.00025205,7]
[344256755,1733322053236,-151.0,0.00025205,7]
[344256756,1733322053279,-151.0,0.00025205,7]
[344256757,1733322053323,-151.0,0.00025205,7]
[344256758,1733322053364,-500.0,0.00025205,7]
[344256759,1733322053405,-500.0,0.00025205,7]
[344256760,1733322053450,-500.0,0.00025205,7]
[344256761,1733322053492,-151.0,0.00025205,7]
[344256762,1733322053534,-151.0,0.00025205,7]
[344256763,1733322053580,-981.94,0.00025205,7]
[344256764,1733322053622,-500.0,0.00025205,7]
[344256765,1733322053664,-500.0,0.00025205,7]
[344256766,1733322053708,-705.85,0.00025205,7]
[344256767,1733322053751,-686.6,0.00025205,7]
[344256768,1733322053794,-500.0,0.00025205,7]
[344256769,1733322053837,-507.77348322,0.00025205,7]
[344256770,1733322053878,-500.0,0.00025205,7]
[344256771,1733322053923,-500.0,0.00025205,7]
[344256772,1733322053968,-500.0,0.00025205,7]
[344256773,1733322054011,-500.0,0.00025205,7]
[344256774,1733322054056,-500.0,0.00025205,7]
[344256775,1733322054108,-500.0,0.00025205,7]
[344256776,1733322054189,-500.0,0.00025205,7]
[344256777,1733322054240,-500.0,0.00025205,7]
[344256778,1733322054286,-500.0,0.00025205,7]
[344256779,1733322054334,-500.0,0.00025205,7]
[344256780,1733322054379,-500.0,0.00025205,7]
[344256781,1733322054422,-151.0,0.00025205,7]
[344256782,1733322054469,-151.0,0.00025205,7]
[344256783,1733322054517,-500.0,0.00025205,7]
[344256784,1733322054562,-500.0,0.00025205,7]
[344256785,1733322054608,-500.0,0.00025205,7]
[344256786,1733322054652,-557.2215386,0.00025205,7]
[344256787,1733322054700,-500.0,0.00025205,7]
[344256788,1733322054745,-5080.46,0.00025205,7]
[344256789,1733322054787,-500.0,0.00025205,7]
[344256790,1733322054827,-500.0,0.00025205,7]
[344256791,1733322054869,-500.0,0.00025205,7]
[344256792,1733322054922,-531.59,0.00025205,7]
[344256793,1733322054966,-500.0,0.00025205,7]
[344256794,1733322055007,-500.0,0.00025205,7]
[344256795,1733322055045,-500.0,0.00025205,7]
[344256796,1733322055089,-500.0,0.00025205,7]
[344256797,1733322055139,-500.0,0.00025205,7]
[344256798,1733322055180,-500.0,0.00025205,7]
[344256799,1733322055218,-500.0,0.00025205,7]
[344256800,1733322055260,-534.72006447,0.00025205,7]
[344256801,1733322055302,-571.27,0.00025205,7]
[344256802,1733322055341,-500.0,0.00025273,2]
[344256803,1733322055385,-500.62551465,0.00025273,2]
[344256804,1733322055425,-500.7026176,0.00025273,2]
[344256805,1733322055464,-171.99199537,0.00025273,2]
[344256806,1733322055507,-500.53577371,0.00025273,2]
[344256807,1733322055549,-507.31647996,0.00025273,2]
[344256808,1733322055588,-210.57,0.00025277,3]
[344256809,1733322055633,-151.0,0.00025288,7]
[344256810,1733322055673,-151.0,0.00025288,7]
[344256811,1733322055712,-151.0,0.00025288,7]
[344256812,1733322055753,-151.0,0.00025288,7]
[344256813,1733322055793,-182.285232,0.00025288,7]
[344256814,1733322055832,-640.16468677,0.00025421,2]
[344256815,1733322055875,-151.0,0.00025479,7]
[344256816,1733322055919,-151.0,0.00025479,7]
[344256817,1733322055962,-151.0,0.00025479,7]
[344256818,1733322056003,-151.0,0.00025479,7]
[344256819,1733322056043,-151.0,0.00025479,7]
[344256820,1733322056087,-271.651268,0.00025479,7]
[344256821,1733322056136,-500.0,0.00025479,7]
[344256822,1733322056304,-364.38000437,0.00025479,7]
[344256823,1733322056346,-500.0,0.00025479,7]
[344256824,1733322056391,-151.0,0.00025479,7]
[344256825,1733322056433,-151.0,0.00025479,7]
[344256826,1733322056475,-981.94,0.00025479,7]
[344256827,1733322056518,-500.0,0.00025479,7]
[344256828,1733322056560,-500.0,0.00025479,7]
[344256829,1733322056606,-705.85,0.00025479,7]
[344256830,1733322056648,-686.6,0.00025479,7]
[344256831,1733322056692,-404.96,0.00025479,7]
[344256832,1733322056739,-500.0,0.00025479,7]
[344256833,1733322056783,-500.0,0.00025479,7]
[344256834,1733322056826,-500.0,0.00025479,7]
[344256835,1733322056875,-500.0,0.00025479,7]
[344256836,1733322056922,-500.0,0.00025479,7]
[344256837,1733322056965,-626.01729846,0.00025479,7]
[344256838,1733322057009,-500.0,0.00025479,7]
[344256839,1733322057052,-500.0,0.00025479,7]
[344256840,1733322057096,-500.0,0.00025479,7]
[344256841,1733322057148,-500.0,0.00025479,7]
[344256842,1733322057191,-500.0,0.00025479,7]
[344256843,1733322057235,-500.0,0.00025479,7]
[344256844,1733322057283,-500.0,0.00025479,7]
[344256845,1733322057326,-500.0,0.00025479,7]
[344256846,1733322057385,-500.0,0.00025479,7]
[344256847,1733322057430,-5080.46,0.00025479,7]
[344256848,1733322057473,-500.0,0.00025479,7]
[344256849,1733322057519,-500.0,0.00025479,7]
[344256850,1733322057561,-531.59,0.00025479,7]
[344256851,1733322057603,-500.0,0.00025479,7]
[344256852,1733322057647,-500.0,0.00025479,7]
[344256853,1733322057692,-268.28,0.00025479,7]
[344256854,1733322057739,-500.0,0.00025479,7]
[344256855,1733322057783,-500.0,0.00025479,7]
[344256856,1733322057822,-571.27,0.00025479,7]
[344256857,1733322057868,-550.15946102,0.00025752,2]
[344256858,1733322057916,-151.0,0.00025753,7]
[344256859,1733322057957,-500.0,0.00025753,7]
[344256860,1733322058002,-500.0,0.00025753,7]
[344256861,1733322058047,-151.0,0.00025753,7]
[344256862,1733322058090,-981.94,0.00025753,7]
[344256863,1733322058139,-500.0,0.00025753,7]
[344256864,1733322058181,-500.0,0.00025753,7]
[344256865,1733322058227,-705.85,0.00025753,7]
[344256866,1733322058271,-686.6,0.00025753,7]
[344256867,1733322058311,-500.0,0.00025753,7]
[344256868,1733322058358,-500.0,0.00025753,7]
[344256869,1733322058400,-306.74172919,0.00025753,7]
[344256870,1733322058439,-500.0,0.00025753,7]
[344256871,1733322058484,-500.0,0.00025753,7]
[344256872,1733322058526,-500.0,0.00025753,7]
[344256873,1733322058567,-500.0,0.00025753,7]
[344256874,1733322058610,-500.0,0.00025753,7]
[344256875,1733322058652,-500.0,0.00025753,7]
[344256876,1733322058692,-500.0,0.00025753,7]
[344256877,1733322058736,-500.0,0.00025753,7]
[344256878,1733322058779,-500.0,0.00025753,7]
[344256879,1733322058824,-500.0,0.00025753,7]
[344256880,1733322058866,-173.70165077,0.00025753,7]
[344256881,1733322058912,-5080.46,0.00025753,7]
[344256882,1733322058957,-500.0,0.00025753,7]
[344256883,1733322058999,-500.0,0.00025753,7]
[344256884,1733322059044,-531.59,0.00025753,7]
[344256885,1733322059088,-500.0,0.00025753,7]
[344256886,1733322059135,-273.0,0.00025753,7]
[344256887,1733322059182,-500.0,0.00025753,7]
[344256888,1733322059223,-500.0,0.00025753,7]
[344256889,1733322059267,-571.27,0.00025753,7]
[344256890,1733322059311,-287.12823538,0.00025927,2]
[344256891,1733322059351,-151.0,0.00026,7]
[344256892,1733322059397,-500.0,0.00026027,7]
[344256893,1733322059440,-500.0,0.00026027,7]
[344256894,1733322059480,-186.5265,0.00026027,7]
[344256895,1733322059527,-981.94,0.00026027,7]
[344256896,1733322059571,-500.0,0.00026027,7]
[344256897,1733322059613,-500.0,0.00026027,7]
[344256898,1733322059659,-705.85,0.00026027,7]
[344256899,1733322059703,-686.6,0.00026027,7]
[344256900,1733322059744,-500.0,0.00026027,7]
[344256901,1733322059786,-500.0,0.00026027,7]
[344256902,1733322059829,-500.0,0.00026027,7]
[344256903,1733322059871,-500.0,0.00026027,7]
[344256904,1733322059920,-500.0,0.00026027,7]
[344256905,1733322059963,-500.0,0.00026027,7]
[344256906,1733322060003,-500.0,0.00026027,7]
[344256907,1733322060050,-500.0,0.00026027,7]
[344256908,1733322060095,-500.0,0.00026027,7]
[344256909,1733322060147,-500.0,0.00026027,7]
[344256910,1733322060199,-500.0,0.00026027,7]
[344256911,1733322060245,-5080.46,0.00026027,7]
[344256912,1733322060294,-500.0,0.00026027,7]
[344256913,1733322060340,-406.56883379,0.00026027,7]
[344256914,1733322060391,-531.59,0.00026027,7]
[344256915,1733322060438,-500.0,0.00026027,7]
[344256916,1733322060484,-500.0,0.00026027,7]
[344256917,1733322060531,-500.0,0.00026027,7]
[344256918,1733322060580,-571.27,0.00026027,7]
[344256919,1733322060628,-287.12823536,0.00026295,2]
[344256920,1733322060679,-500.0,0.00026301,7]
[344256921,1733322060721,-500.0,0.00026301,7]
[344256922,1733322060767,-981.94,0.00026301,7]
[344256923,1733322060810,-500.0,0.00026301,7]
[344256924,1733322060853,-500.0,0.00026301,7]
[344256925,1733322060899,-705.85,0.00026301,7]
[344256926,1733322060940,-686.6,0.00026301,7]
[344256927,1733322060982,-500.0,0.00026301,7]
[344256928,1733322061024,-500.0,0.00026301,7]
[344256929,1733322061062,-500.0,0.00026301,7]
[344256930,1733322061108,-500.0,0.00026301,7]
[344256931,1733322061151,-163.25580097,0.00026301,7]
[344256932,1733322061192,-500.0,0.00026301,7]
[344256933,1733322061234,-500.0,0.00026301,7]
[344256934,1733322061273,-500.0,0.00026301,7]
[344256935,1733322061314,-500.0,0.00026301,7]
[344256936,1733322061355,-500.0,0.00026301,7]
[344256937,1733322061519,-500.0,0.00026301,7]
[344256938,1733322061573,-5080.46,0.00026301,7]
[344256939,1733322061616,-500.0,0.00026301,7]
[344256940,1733322061662,-531.59,0.00026301,7]
[344256941,1733322061703,-500.0,0.00026301,7]
[344256942,1733322061745,-500.0,0.00026301,7]
[344256943,1733322061790,-500.0,0.00026301,7]
[344256944,1733322061834,-571.27,0.00026301,7]
[344256945,1733322061882,-500.0,0.00026575,7]
[344256946,1733322061931,-500.0,0.00026575,7]
[344256947,1733322061974,-981.94,0.00026575,7]
[344256948,1733322062018,-261.61742384,0.00026575,7]
[344256949,1733322062060,-500.0,0.00026575,7]
[344256950,1733322062107,-705.85,0.00026575,7]
[344256951,1733322062154,-686.6,0.00026575,7]
[344256952,1733322062196,-500.0,0.00026575,7]
[344256953,1733322062244,-500.0,0.00026575,7]
[344256954,1733322062290,-500.0,0.00026575,7]
[344256955,1733322062332,-500.0,0.00026575,7]
[344256956,1733322062381,-500.0,0.00026575,7]
[344256957,1733322062430,-500.0,0.00026575,7]
[344256958,1733322062476,-500.0,0.00026575,7]
[344256959,1733322062528,-500.0,0.00026575,7]
[344256960,1733322062575,-500.0,0.00026575,7]
[344256961,1733322062624,-5080.46,0.00026575,7]
[344256962,1733322062676,-183.93192261,0.00026575,7]
[344256963,1733322062721,-531.59,0.00026575,7]
[344256964,1733322062769,-500.0,0.00026575,7]
[344256965,1733322062813,-500.0,0.00026575,7]
[344256966,1733322062858,-500.0,0.00026575,7]
[344256967,1733322062905,-571.27,0.00026575,7]
[344256968,1733322062946,-287.12823536,0.00026664,2]
[344256969,1733322062991,-420.0,0.0002672,2]
[344256970,1733322063036,-477.96358907,0.00026849,7]
[344256971,1733322063079,-500.0,0.00026849,7]
[344256972,1733322063129,-981.94,0.00026849,7]
[344256973,1733322063185,-500.0,0.00026849,7]
[344256974,1733322063236,-705.85,0.00026849,7]
[344256975,1733322063283,-686.6,0.00026849,7]
[344256976,1733322063333,-500.0,0.00026849,7]
[344256977,1733322063381,-500.0,0.00026849,7]
[344256978,1733322063434,-500.0,0.00026849,7]
[344256979,1733322063486,-500.0,0.00026849,7]
[344256980,1733322063535,-500.0,0.00026849,7]
[344256981,1733322063586,-318.78786268,0.00026849,7]
[344256982,1733322063633,-500.0,0.00026849,7]
[344256983,1733322063683,-500.0,0.00026849,7]
[344256984,1733322063730,-500.0,0.00026849,7]
[344256985,1733322063780,-5080.46,0.00026849,7]
[344256986,1733322063829,-531.59,0.00026849,7]
[344256987,1733322063874,-500.0,0.00026849,7]
[344256988,1733322063922,-354.19808667,0.00026849,7]
[344256989,1733322063967,-315.696,0.00026849,7]
[344256990,1733322064011,-571.27,0.00026849,7]
[344256991,1733322064066,-160.0,0.00027,2]
[344256992,1733322064207,604.82246892,0.00025273,2]
[344256993,1733322064253,374.96339222,0.00024973,2]
[344256994,1733322064311,3914.48378927,0.00027,2]
[344256995,1733322064486,500.0,0.00024657,7]
[344256996,1733322064538,489.40692818,0.00024931,7]
[344256997,1733322064595,500.0,0.00024657,7]
[344256998,1733322064647,500.0,0.00024931,7]
[344256999,1733322064698,500.0,0.00025205,7]
[344257000,1733322064749,500.0,0.00025479,7]
[344257001,1733322064799,500.0,0.00025753,7]
[344257002,1733322064866,3178.560918,0.00027,2]
[344257003,1733322064919,500.0,0.00026027,7]
[344257004,1733322065041,500.0,0.00026301,7]
[344257005,1733322065099,500.0,0.00026575,7]
[344257006,1733322065158,500.0,0.00024657,7]
[344257007,1733322065207,500.0,0.00026849,7]
[344257008,1733322065265,500.0,0.00024931,7]
[344257009,1733322065320,500.0,0.00025205,7]
[344257010,1733322065373,500.0,0.00025479,7]
[344257011,1733322065436,500.0,0.00025753,7]
[344257012,1733322065494,500.0,0.00026027,7]
[344257013,1733322065542,500.0,0.00024657,7]
[344257014,1733322065597,500.0,0.00026301,7]
[344257015,1733322065653,500.0,0.00026575,7]
[344257016,1733322065702,500.0,0.00024931,7]
[344257017,1733322065755,500.0,0.00026849,7]
[344257018,1733322065858,245.94264751,0.00024657,7]
[344257019,1733322066178,500.0,0.0002493,2]
[344257020,1733322066227,500.0,0.0002493,2]
[344257021,1733322066281,500.0,0.0002493,2]
[344257022,1733322066330,500.0,0.0002493,2]
[344257023,1733322066380,500.0,0.0002493,2]
[344257024,1733322066433,500.0,0.0002493,2]
[344257025,1733322066484,500.0,0.0002493,2]
[344257026,1733322066535,500.0,0.0002493,2]
[344257027,1733322066588,500.0,0.0002493,2]
[344257028,1733322066643,500.0,0.0002493,2]
[344257029,1733322066698,500.0,0.0002493,2]
[344257030,1733322066753,500.0,0.0002493,2]
[344257031,1733322066806,500.0,0.0002493,2]
[344257032,1733322066866,650.0,0.0002493,2]
[344257033,1733322066926,500.0,0.0002493,2]
[344257034,1733322066986,500.0,0.0002493,2]
[344257035,1733322067037,500.0,0.0002493,2]
[344257036,1733322067099,490.33108228,0.00024657,7]
[344257037,1733322067169,500.0,0.00024657,7]
[344257038,1733322067222,502.24961082,0.00024931,7]
[344257039,1733322067273,500.0,0.00024657,7]
[344257040,1733322067323,500.0,0.00024931,7]
[344257041,1733322069718,290.9960007,0.00025205,7]
[344257042,1733322071114,534.81967911,0.00024657,7]
[344257043,1733322071381,500.96347609,0.00026578,2]
[344257044,1733322071817,2948.09005085,0.00026749,2]
[344257045,1733322074803,500.0,0.00024657,7]
[344257046,1733322075009,501.79714073,0.00024931,7]
[344257047,1733322075560,500.0,0.00024657,7]
[344257048,1733322075881,500.0,0.00024931,7]
[344257049,1733322076377,500.0,0.00024657,7]
[344257050,1733322076554,500.0,0.00025205,7]
[344257051,1733322076646,500.0,0.00024931,7]
[344257052,1733322076819,468.82017943,0.00025479,7]
[344257053,1733322076934,500.0,0.00025205,7]
[344257054,1733322077210,500.0,0.00025479,7]
[344257055,1733322077473,500.0,0.00025753,7]
[344257056,1733322077751,500.0,0.00026027,7]
[344257057,1733322078034,500.0,0.00026301,7]
[344257058,1733322078292,500.0,0.00026575,7]
[344257059,1733322078545,500.0,0.00026849,7]
[344257060,1733322082943,500.0,0.00024657,7]
[344257061,1733322083201,500.0,0.00024931,7]
[344257062,1733322083478,500.0,0.00025205,7]
[344257063,1733322083610,500.0,0.00024657,7]
[344257064,1733322083741,344.48246445,0.00025479,7]
[344257065,1733322083897,503.41475595,0.00024931,7]
[344257066,1733322087998,500.0,0.00024657,7]
[344257067,1733322088336,500.0,0.00024931,7]
[344257068,1733322088595,500.0,0.00025205,7]
[344257069,1733322088860,500.0,0.00025479,7]
[344257070,1733322089130,500.0,0.00025753,7]
[344257071,1733322089382,500.0,0.00026027,7]
[344257072,1733322089976,500.0,0.00026301,7]
[344257073,1733322090307,500.0,0.00026575,7]
[344257074,1733322090550,500.0,0.00026849,7]
[344257076,1733322092071,500.0,0.00024657,7]
[344257077,1733322092119,500.0,0.00024657,7]
[344257078,1733322092346,500.0,0.00024931,7]
[344257079,1733322092570,500.0,0.00024931,7]
[344257080,1733322092619,500.0,0.00025205,7]
[344257081,1733322092857,500.0,0.00025205,7]
[344257082,1733322092902,500.0,0.00025479,7]
[344257083,1733322093166,500.0,0.00025753,7]
[344257084,1733322093422,500.0,0.00026027,7]
[344257085,1733322093662,250.0,0.0002626,2]
[344257086,1733322093711,500.0,0.00026301,7]
[344257087,1733322093980,500.0,0.00026575,7]
[344257088,1733322094230,500.0,0.00026849,7]
[344257089,1733322113468,517.03419902,0.00024657,7]
[344257091,1733322127700,500.0,0.00024657,7]
[344257092,1733322128334,500.0,0.00024931,7]
[344257093,1733322128656,500.0,0.00025205,7]
[344257094,1733322128916,500.0,0.00025479,7]
[344257095,1733322129218,500.0,0.00025753,7]
[344257096,1733322129508,500.0,0.00026027,7]
[344257097,1733322129776,500.0,0.00026301,7]
[344257098,1733322130040,500.0,0.00026575,7]
[344257099,1733322130308,500.0,0.00026849,7]
[344257100,1733322146952,500.0,0.00024657,7]
[344257101,1733322147214,500.0,0.00024931,7]
[344257102,1733322147489,317.00155547,0.00025205,7]
[344257103,1733322147715,160.0,0.00027,2]
[344257104,1733322153069,3175.29,0.00024657,7]
[344257105,1733322153708,3175.29,0.00024931,7]
[344257106,1733322154009,3175.29,0.00025205,7]
[344257107,1733322154388,3175.29,0.00025479,7]
[344257108,1733322154667,3175.29,0.00025753,7]
[344257109,1733322154966,3175.29,0.00026027,7]
[344257110,1733322155241,3175.29,0.00026301,7]
[344257111,1733322155556,3175.29,0.00026575,7]
[344257112,1733322155833,3175.29,0.00026849,7]
[344257113,1733322163556,964.84152384,0.00027,2]
[344257114,1733322173216,500.0,0.00024657,7]
[344257115,1733322173469,500.0,0.00024931,7]
[344257116,1733322173768,500.0,0.00025205,7]
[344257117,1733322174054,500.0,0.00025479,7]